bitfinex-derivatives/quotes_ETHF0:USTF0_20250212
["timestamp","ask_amount","ask_price","bid_price","bid_amount"]
[1739396972070,1.648,2689.4,2689.2,3.7703]
[1739396972277,1.648,2689.4,2689.3,0.74365]
[1739396973175,2.39162,2689.4,2689.3,0.74365]
[1739396973379,1.648,2689.4,2689.2,3.7703]
[1739396973678,2.39163,2689.4,2689.3,0.74365]
[1739396973976,1.648,2689.4,2689.3,0.74365]
[1739396974772,2.39162,2689.4,2689.3,0.74365]
[1739396974972,0.74365,2689.3,2689.2,4.51396]
[1739396975173,0.74365,2689.3,2689.2,1.30616]
[1739396975679,1.29575,2689.3,2689.2,4.51396]
[1739396976085,1.29575,2689.3,2689.2,3.7703]
[1739396976276,1.29575,2689.3,2689.2,0.5625]
[1739396977179,1.29575,2689.3,2689.2,1.30618]
[1739396977367,1.648,2689.4,2689.3,0.74365]
[1739396980072,0.74345,2690.1,2690.0,0.74344]
[1739396980377,3.21337756,2690.2,2689.9,0.74346]
[1739396980378,0.74346,2690.0,2689.9,0.74346]
[1739396980873,0.74351,2689.8,2689.7,1.1594]
[1739396981078,0.74351,2689.8,2689.7,0.6029]
[1739396981280,0.74357,2689.6,2689.5,0.5575]
[1739396981468,1.1352,2689.8,2689.3,4.3672]
[1739396981672,1.29722,2689.5,2689.4,0.74361]
[1739396981877,0.74362,2689.4,2689.3,5.11084]
[1739396982077,0.74362,2689.4,2689.3,3.8107]
[1739396982271,0.74362,2689.4,2689.1,0.74925756]
[1739396982272,0.74368,2689.2,2689.1,0.74925756]
[1739396983075,0.74368,2689.2,2689.1,0.00557756]
[1739396983572,2.39168,2689.2,2689.1,0.00557756]
[1739396984378,2.39168,2689.2,2689.1,0.74928756]
[1739396984576,1.648,2689.2,2689.1,0.74928756]
[1739396985175,0.5527,2689.4,2689.1,0.00557756]
[1739396985377,2.2016,2689.5,2689.4,0.74362]
[1739396985577,1.648,2689.5,2689.4,0.74362]
[1739396985879,3.53495,2689.7,2689.6,0.74357]
[1739396986183,2.2362,2689.7,2689.6,0.74357]
[1739396986577,2.2362,2689.7,2689.5,0.74358]
[1739396986772,2.97976,2689.7,2689.6,0.74357]
[1739396986972,0.74359,2689.6,2689.5,0.74359]
[1739396987779,0.74359,2689.5,2689.4,2.4304]
[1739396987969,2.2362,2689.7,2689.4,1.6868]
[1739396988174,2.97975,2689.7,2689.6,0.74357]
[1739396988673,0.74352,2689.8,2689.7,0.74352]
[1739396990577,2.1945,2689.9,2689.6,3.2078]
[1739396990785,0.74352,2689.8,2689.7,0.74352]
[1739396991177,0.74359,2689.5,2689.4,2.4304]
[1739396991581,0.74359,2689.5,2689.4,1.8713]
[1739396992184,0.74362,2689.4,2689.3,3.95143]
[1739396992677,0.74362,2689.4,2689.3,3.2078]
[1739396993083,1.90132,2689.4,2689.3,3.2078]
[1739396995686,1.90132,2689.4,2689.3,3.95145]
[1739396996084,1.648,2689.5,2689.3,3.2078]
[1739396996288,1.648,2689.5,2689.4,0.74362]
[1739396999486,2.2372,2689.7,2689.6,0.74357]
[1739397000385,0.5534,2689.9,2689.6,3.2078]
[1739397000590,3.53409,2689.9,2689.8,0.74351]
[1739397000993,2.7906,2689.9,2689.8,0.74351]
[1739397001187,3.53408,2689.9,2689.8,0.74351]
[1739397001383,2.7906,2689.9,2689.6,3.2078]
[1739397001589,1.85893,2689.6,2689.2,0.5889]
[1739397001792,3.05812,2689.5,2689.1,0.00557756]
[1739397001990,0.74368,2689.2,2689.1,0.74925756]
[1739397002495,0.74368,2689.2,2689.1,0.00557756]
[1739397002693,0.74368,2689.2,2689.1,0.74928756]
[1739397003192,0.74368,2689.2,2689.1,0.00557756]
[1739397003890,0.74368,2689.2,2688.5,1.1279]
[1739397003891,0.06148459,2689.2,2688.5,0.5605]
[1739397004194,0.74392,2688.4,2688.2,1.31335]
[1739397004388,3.2078,2688.9,2688.1,5.60677776]
[1739397004587,3.3029,2688.8,2688.2,3.2078]
[1739397004895,6.5107,2688.8,2688.2,3.2078]
[1739397005090,0.74391,2688.4,2688.2,3.95174]
[1739397005287,0.74391,2688.4,2688.3,0.74393]
[1739397005493,0.74389,2688.5,2688.3,0.74393]
[1739397005684,0.74391,2688.4,2688.2,3.2078]
[1739397005888,6.51627756,2688.8,2688.2,3.2078]
[1739397006088,0.74388,2688.5,2688.3,0.74392]
[1739397006796,3.30847756,2688.8,2688.2,3.2078]
[1739397006986,3.30847756,2688.8,2688.7,0.74382]
[1739397007189,3.30847756,2688.8,2688.6,3.95162]
[1739397007190,4.05226756,2688.8,2688.6,3.95162]
[1739397007787,3.30847756,2688.8,2688.7,0.74382]
[1739397007997,2.21427756,2688.8,2688.7,0.74382]
[1739397008197,2.21427756,2688.8,2688.7,1.32812]
[1739397008490,0.00557756,2688.8,2688.7,1.32812]
[1739397009396,0.00557756,2688.8,2688.6,3.2078]
[1739397009397,0.00557756,2688.8,2688.4,0.572]
[1739397009600,0.74385,2688.6,2688.4,1.31589]
[1739397009892,0.74387,2688.5,2688.3,3.9517]
[1739397010395,0.74387,2688.5,2688.3,3.95172]
[1739397010599,0.7439,2688.5,2688.3,3.95172]
[1739397010794,1.7816,2688.7,2688.3,3.2078]
[1739397010989,2.52542,2688.7,2688.3,3.2078]
[1739397011194,1.7816,2688.7,2688.6,0.74384]
[1739397011394,1.7816,2688.7,2688.3,3.2078]
[1739397011692,3.4296,2688.7,2688.5,0.74386]
[1739397011891,0.74387,2688.5,2688.4,0.74388]
[1739397012398,3.4296,2688.7,2688.3,3.2078]
[1739397012993,0.74385,2688.6,2688.3,3.2078]
[1739397013196,0.74386,2688.6,2688.4,0.74389]
[1739397013588,4.17343,2688.7,2688.5,0.74385]
[1739397013798,0.74384,2688.6,2688.5,0.74387]
[1739397013989,4.17344,2688.7,2688.3,3.2078]
[1739397014190,3.4296,2688.7,2688.3,3.2078]
[1739397014393,0.74388,2688.5,2688.4,0.74389]
[1739397015193,3.4296,2688.7,2688.3,3.2078]
[1739397015399,3.4296,2688.7,2688.6,0.74384]
[1739397015400,4.17342,2688.7,2688.6,0.74384]
[1739397016894,3.4296,2688.7,2688.3,3.2078]
[1739397017102,3.4296,2688.7,2688.4,0.7439]
[1739397017295,0.74387,2688.5,2688.4,0.7439]
[1739397018192,4.17344,2688.7,2688.3,3.2078]
[1739397018399,0.74386,2688.6,2688.5,0.74385]
[1739397018698,0.74387,2688.5,2688.4,0.74389]
[1739397019100,3.4296,2688.7,2688.3,3.2078]
[1739397019294,0.7439,2688.4,2688.3,3.95173]
[1739397020499,3.4296,2688.7,2688.3,3.2078]
[1739397020698,0.74388,2688.6,2688.5,0.74386]
[1739397021103,3.4296,2688.7,2688.3,3.2078]
[1739397021296,0.7439,2688.4,2688.3,3.95171]
[1739397021492,0.7439,2688.4,2688.3,3.95173]
[1739397022294,0.74386,2688.6,2688.5,0.74384]
[1739397022903,1.34642,2688.7,2688.6,0.74384]
[1739397024196,0.6026,2688.7,2688.5,0.5767]
[1739397024403,0.74384,2688.6,2688.5,1.32055]
[1739397026199,1.1761,2688.7,2688.5,0.5767]
[1739397026395,0.6026,2688.7,2688.6,3.95164]
[1739397026594,1.34642,2688.7,2688.6,3.95164]
[1739397026794,1.34642,2688.7,2688.6,3.2078]
[1739397027001,1.34642,2688.7,2688.6,0.74384]
[1739397028100,0.74384,2688.6,2688.5,1.32055]
[1739397028494,0.6026,2688.7,2688.4,1.34809]
[1739397028700,0.7439,2688.4,2688.3,3.95172]
[1739397029496,2.1994,2688.5,2687.9,3.2078]
[1739397029699,1.85975,2688.4,2687.9,3.7775]
[1739397029898,0.74401,2688.0,2687.9,3.7775]
[1739397030099,0.74401,2688.0,2687.7,0.18233429]
[1739397030100,0.74406,2687.8,2687.7,0.18233429]
[1739397030309,1.1472,2687.9,2687.5,4.9138]
[1739397030500,1.1472,2687.9,2687.7,0.74407]
[1739397030698,1.89125,2687.9,2687.8,0.74406]
[1739397031400,3.50769,2688.5,2687.8,3.2078]
[1739397031401,1.648,2688.5,2687.8,3.2078]
[1739397031607,1.2953,2688.4,2688.3,0.74392]
[1739397032402,1.29531,2688.4,2688.3,0.74393]
[1739397032800,0.74395,2688.2,2688.1,3.95177]
[1739397032994,0.74394,2688.3,2688.1,3.2078]
[1739397033195,0.74395,2688.2,2688.1,3.95177]
[1739397033399,1.29531,2688.4,2688.3,0.74393]
[1739397033601,0.5514,2688.4,2688.3,0.74393]
[1739397034298,1.2953,2688.4,2688.3,0.74393]
[1739397034500,0.00557756,2688.8,2688.3,3.26113152]
[1739397034693,0.00557756,2688.8,2688.7,0.74381]
[1739397035498,0.00557756,2688.8,2688.7,3.95161]
[1739397036396,0.00557756,2688.8,2688.4,3.2078]
[1739397036599,0.74937756,2688.8,2688.7,0.74381]
[1739397036804,0.00557756,2688.8,2688.7,0.74381]
[1739397037007,0.74382,2688.7,2688.6,0.74383]
[1739397037205,0.00557756,2688.8,2688.7,0.74382]
[1739397038108,0.74936756,2688.8,2688.7,0.74382]
[1739397038307,0.00557756,2688.8,2688.4,4.3771]
[1739397038499,0.00557756,2688.8,2688.5,0.74385]
[1739397038703,0.00557756,2688.8,2688.4,4.3771]
[1739397038704,0.00557756,2688.8,2688.4,3.2078]
[1739397038903,4.90913152,2688.7,2688.1,3.2078]
[1739397039104,0.74397,2688.2,2688.1,3.2078]
[1739397039709,0.74403,2688.0,2687.8,0.74405]
[1739397040008,0.74401,2688.0,2687.9,3.95183]
[1739397040208,0.74401,2688.0,2687.9,3.2078]
[1739397040406,0.5557,2688.0,2687.8,0.74405]
[1739397040809,1.29972,2688.0,2687.8,0.74405]
[1739397041603,1.29972,2688.0,2687.8,0.74404]
[1739397041906,3.2078,2688.5,2687.7,3.26113152]
[1739397042110,2.7713,2688.4,2687.7,3.26113152]
[1739397042303,3.327,2688.4,2688.0,0.744]
[1739397042505,0.74399,2688.1,2687.9,0.74402]
[1739397043107,3.327,2688.4,2687.7,3.26113152]
[1739397043304,3.327,2688.4,2688.0,0.74399]
[1739397043620,0.74399,2688.1,2688.0,3.95181]
[1739397043908,3.327,2688.4,2688.0,3.95181]
[1739397044209,0.74398,2688.1,2688.0,3.2078]
[1739397044410,0.74398,2688.1,2688.0,3.95181]
[1739397044610,0.74398,2688.1,2688.0,3.2078]
[1739397045006,3.327,2688.4,2688.0,3.2078]
[1739397045201,0.74396,2688.2,2688.1,0.74397]
[1739397045401,0.74396,2688.2,2688.1,1.1868]
[1739397045616,0.74396,2688.2,2688.1,0.5846]
[1739397045813,3.327,2688.4,2688.0,3.2078]
[1739397046115,0.74405,2687.9,2687.8,0.74406]
[1739397046513,0.74402,2688.0,2687.9,0.74403]
[1739397046712,0.744,2688.1,2688.0,0.744]
[1739397047013,0.74396,2688.2,2688.1,0.74397]
[1739397047605,3.327,2688.4,2688.0,3.2078]
[1739397048116,0.74398,2688.2,2688.1,0.74398]
[1739397048914,0.74398,2688.1,2688.0,3.95179]
[1739397049114,0.74398,2688.1,2688.0,3.2078]
[1739397049916,1.85983,2688.3,2688.2,0.74393]
[1739397049917,0.74394,2688.3,2688.2,0.74393]
[1739397050322,0.74395,2688.2,2688.1,1.6913]
[1739397050609,0.74395,2688.2,2688.1,1.1152]
[1739397050816,3.327,2688.4,2688.1,1.1152]
[1739397051017,1.679,2688.4,2688.1,1.1152]
[1739397051515,0.74395,2688.2,2688.1,1.85915]
[1739397051711,1.679,2688.4,2688.1,1.1152]
[1739397051917,0.74388,2688.5,2688.4,0.7439]
[1739397052116,0.74386,2688.6,2688.5,0.74386]
[1739397052314,3.3828,2688.7,2688.3,3.2078]
[1739397052515,0.00557756,2688.8,2688.7,0.74382]
[1739397052911,0.00557756,2688.8,2688.7,3.95162]
[1739397053712,0.00557756,2688.8,2688.7,5.70292]
[1739397057120,0.00557756,2688.8,2688.7,4.3853]
[1739397057423,0.00557756,2688.8,2688.7,5.12912]
[1739397057921,8.32786152,2689.6,2688.7,4.3853]
[1739397058129,0.74365,2689.3,2689.1,0.74368]
[1739397058321,1.7554,2689.5,2689.2,0.74368]
[1739397058631,4.147,2689.5,2689.3,0.74364]
[1739397059215,3.4034,2689.5,2689.3,0.74364]
[1739397059420,0.74365,2689.3,2689.2,0.5694]
[1739397059617,0.74365,2689.3,2689.1,0.74927756]
[1739397059821,0.74368,2689.2,2689.1,0.00557756]
[1739397062326,0.74368,2689.2,2689.1,0.74927756]
[1739397063734,0.74368,2689.2,2689.1,0.00557756]
[1739397064224,0.8051625,2689.2,2689.1,0.00557756]
[1739397064424,0.74368,2689.2,2689.1,0.00557756]
[1739397065727,4.8558,2689.3,2689.2,0.74368]
[1739397066137,4.8558,2689.3,2689.1,0.00557756]
[1739397066138,1.648,2689.3,2689.1,0.00557756]
[1739397066337,1.648,2689.3,2689.2,0.74368]
[1739397067430,0.6048,2689.5,2689.4,0.74362]
[1739397068428,0.6048,2689.5,2689.3,0.74362]
[1739397068735,0.74363,2689.4,2689.3,0.74362]
[1739397069337,0.6048,2689.5,2689.1,0.55497756]
[1739397069529,1.34841,2689.5,2689.4,0.74362]
[1739397070034,0.6048,2689.5,2689.4,0.74362]
[1739397070627,1.65357756,2689.7,2689.6,0.74357]
[1739397070824,1.7150433,2689.7,2689.6,0.74357]
[1739397071232,0.0670433,2689.7,2689.6,0.74357]
[1739397071543,5.4232,2690.1,2689.7,0.74352]
[1739397071836,0.74354,2689.7,2689.6,1.29315]
[1739397072435,0.74353,2689.8,2689.7,0.74353]
[1739397073542,0.74354,2689.7,2689.6,1.29316]
[1739397073835,0.80501525,2689.7,2689.6,0.74356]
[1739397074138,0.74907756,2689.9,2689.8,0.74351]
[1739397074437,0.06703782,2689.9,2689.5,3.2078]
[1739397074639,0.00557756,2689.9,2689.8,0.74351]
[1739397074943,0.00557756,2689.9,2689.8,3.95131]
[1739397075437,0.81051581,2689.9,2689.8,3.2078]
[1739397075831,0.81051879,2689.9,2689.8,3.2078]
[1739397076836,0.06703879,2689.9,2689.4,3.2078]
[1739397077038,0.74359,2689.5,2689.4,3.9514]
[1739397077539,3.26670908,2689.9,2689.4,3.2078]
[1739397077731,0.74357,2689.7,2689.6,0.74356]
[1739397077931,1.70846699,2689.7,2689.4,3.2078]
[1739397078137,1.31108,2689.6,2689.5,0.74358]
[1739397078437,1.90158,2689.6,2689.5,0.74358]
[1739397078835,1.158,2689.6,2689.4,3.2078]
[1739397079140,1.30349,2689.5,2689.4,3.2078]
[1739397080539,1.30349,2689.5,2689.4,3.95142]
[1739397080740,1.30349,2689.5,2689.4,3.2078]
[1739397081039,1.30349,2689.5,2689.4,3.95142]
[1739397082234,0.5599,2689.5,2689.4,3.95142]
[1739397083443,1.30349,2689.5,2689.4,3.95142]
[1739397083645,1.30349,2689.5,2689.4,3.2078]
[1739397084845,1.30349,2689.5,2689.4,3.95142]
[1739397086144,1.30349,2689.5,2689.4,3.2078]
[1739397086646,1.30349,2689.5,2689.4,3.95142]
[1739397087643,0.5599,2689.5,2689.1,3.21337756]
[1739397087943,0.5599,2689.5,2689.1,3.95706756]
[1739397087944,0.74368,2689.2,2689.1,3.95706756]
[1739397088239,0.74367,2689.3,2689.2,0.74365]
[1739397091847,0.74364,2689.4,2689.3,0.74362]
[1739397092935,0.74353,2689.8,2689.7,0.74351]
[1739397093237,0.5838,2689.8,2689.6,3.95135]
[1739397093537,0.5838,2689.8,2689.5,0.74357]
[1739397093844,0.5838,2689.8,2689.3,3.2078]
[1739397094044,0.74362,2689.4,2689.3,3.95145]
[1739397094442,0.74362,2689.4,2689.3,3.2078]
[1739397094842,0.74368,2689.2,2689.1,0.00557756]
[1739397095939,0.74368,2689.2,2688.6,5.12070152]
[1739397095940,3.26113152,2689.2,2688.1,3.2078]
[1739397096239,0.74391,2688.4,2688.2,1.29671008]
[1739397096438,0.74393,2688.3,2688.2,0.55277008]
[1739397096836,0.74393,2688.3,2688.1,3.95177]
[1739397097040,1.647,2688.5,2688.1,3.2078]
[1739397097248,0.74391,2688.4,2688.2,0.74394]
[1739397097649,1.65257756,2688.5,2688.1,3.2078]
[1739397097948,0.74392,2688.4,2688.2,0.74395]
[1739397099250,0.74392,2688.4,2688.1,3.2078]
[1739397099251,2.23887756,2688.5,2688.1,3.2078]
[1739397099853,0.74395,2688.2,2688.1,3.2078]
[1739397100749,2.23887756,2688.5,2688.1,3.2078]
[1739397100945,0.74395,2688.3,2688.1,3.2078]
[1739397101145,0.74395,2688.3,2688.1,3.95178]
[1739397101849,2.23887756,2688.5,2688.1,3.2078]
[1739397102152,2.23887756,2688.5,2688.1,3.95178]
[1739397102350,0.74395,2688.2,2688.1,3.95178]
[1739397102653,2.23887756,2688.5,2688.2,0.74395]
[1739397102949,0.74393,2688.3,2688.2,0.74395]
[1739397104050,0.74393,2688.3,2688.1,3.2078]
[1739397104239,0.74393,2688.3,2688.2,0.74395]
[1739397104442,2.23887756,2688.5,2688.1,3.2078]
[1739397104753,0.74395,2688.2,2688.1,3.2078]
[1739397105454,0.5558,2688.4,2687.9,1.17157756]
[1739397105657,0.74401,2688.0,2687.9,1.17157756]
[1739397105856,0.74401,2688.0,2687.9,0.59267756]
[1739397106150,0.74401,2688.0,2687.9,0.00557756]
[1739397106550,1.30181,2688.0,2687.9,0.00557756]
[1739397107141,0.5951,2688.1,2687.9,0.74961756]
[1739397107348,0.74401,2688.0,2687.9,0.74961756]
[1739397107945,0.5951,2688.1,2687.9,0.00557756]
[1739397108151,1.33911,2688.1,2688.0,0.74401]
[1739397108557,0.5951,2688.1,2688.0,0.74401]
[1739397108857,2.2058,2688.3,2687.9,0.00557756]
[1739397109055,0.74398,2688.2,2688.1,0.74397]
[1739397109654,0.74398,2688.1,2688.0,0.74401]
[1739397113357,2.7803,2688.3,2687.9,0.00557756]
[1739397113559,1.87624,2688.3,2688.2,3.95175]
[1739397115261,1.87624,2688.3,2688.2,3.2078]
[1739397117763,1.87624,2688.3,2688.2,3.95175]
[1739397118158,1.1323,2688.3,2688.2,3.95175]
[1739397118366,0.5745,2688.3,2688.2,3.95175]
[1739397118959,1.31843,2688.3,2688.2,3.95175]
[1739397119855,0.5745,2688.3,2688.2,3.95175]
[1739397120264,1.31843,2688.3,2688.2,3.95175]
[1739397122261,0.5745,2688.3,2688.2,3.95175]
[1739397122462,2.39746756,2688.5,2688.4,0.7439]
[1739397124168,1.65357756,2688.5,2688.2,3.2078]
[1739397124362,0.74392,2688.4,2688.3,0.7439]
[1739397124566,0.74945756,2688.5,2688.4,0.7439]
[1739397125462,0.00557756,2688.5,2688.4,0.7439]
[1739397126063,0.74944756,2688.5,2688.4,0.7439]
[1739397126775,0.00557756,2688.5,2688.4,0.7439]
[1739397127476,0.6015,2689.0,2688.9,0.74376]
[1739397127677,1.648,2689.1,2688.7,3.8009]
[1739397127875,0.6015,2689.0,2688.9,0.74376]
[1739397128174,1.34523,2689.0,2688.9,0.74376]
[1739397128775,0.6015,2689.0,2688.9,0.74376]
[1739397128975,1.34523,2689.0,2688.9,0.74376]
[1739397129272,0.74379,2688.8,2688.7,4.54469]
[1739397129475,0.74379,2688.8,2688.7,3.2078]
[1739397130178,6.46893152,2688.8,2688.0,3.2078]
[1739397130378,0.74398,2688.1,2688.0,3.95181]
[1739397130574,1.85961,2688.6,2688.0,3.2078]
[1739397130772,0.74396,2688.2,2688.1,0.74396]
[1739397130972,0.6042,2688.3,2688.0,3.2078]
[1739397131173,0.6042,2688.5,2688.4,0.74389]
[1739397131373,0.6042,2688.5,2688.1,2.42813]
[1739397131374,1.34809,2688.5,2688.3,0.7439]
[1739397131575,1.34809,2688.5,2688.2,0.5829]
[1739397131778,0.6042,2688.5,2688.3,0.7439]
[1739397131978,0.6042,2688.5,2688.2,0.5829]
[1739397132174,0.6042,2688.5,2688.2,1.32684]
[1739397132374,0.6042,2688.5,2688.2,0.5829]
[1739397132682,0.74391,2688.4,2688.3,0.74391]
[1739397132981,1.34809,2688.5,2688.3,0.74393]
[1739397133476,1.89413,2688.7,2688.3,3.2078]
[1739397133682,0.5999,2688.7,2688.6,0.74384]
[1739397133887,0.7438,2688.8,2688.3,7.06203152]
[1739397134090,1.3437,2688.8,2688.3,7.06203152]
[1739397134388,0.5999,2688.8,2688.3,7.06203152]
[1739397134578,0.5999,2688.8,2688.5,0.74386]
[1739397134778,0.5999,2688.8,2688.3,7.06203152]
[1739397134974,0.5999,2688.8,2688.3,3.8009]
[1739397135181,0.7439,2688.4,2688.3,3.2078]
[1739397135887,2.4594,2688.8,2688.3,3.2078]
[1739397136083,0.7439,2688.4,2688.3,3.2078]
[1739397136584,1.647,2688.6,2688.3,3.2078]
[1739397136787,0.74388,2688.5,2688.3,3.2078]
[1739397137087,0.74389,2688.5,2688.3,3.2078]
[1739397137284,1.315,2688.4,2688.3,3.2078]
[1739397139092,0.5711,2688.4,2688.3,3.2078]
[1739397139284,1.315,2688.4,2688.3,3.2078]
[1739397139991,0.5711,2688.4,2688.0,3.2078]
[1739397140187,0.74399,2688.1,2688.0,3.2078]
[1739397140885,0.5711,2688.4,2688.0,3.2078]
[1739397141088,0.5711,2688.4,2688.2,0.74394]
[1739397141382,0.5711,2688.4,2688.0,3.2078]
[1739397141582,0.74395,2688.2,2688.0,3.95179]
[1739397142093,0.5711,2688.4,2688.0,3.2078]
[1739397142591,0.74398,2688.1,2688.0,3.2078]
[1739397143994,0.74398,2688.1,2688.0,3.95181]
[1739397144196,0.74398,2688.2,2688.0,4.50431671]
[1739397144389,0.74398,2688.2,2688.0,4.50430671]
[1739397144592,0.74394,2688.3,2688.1,0.74396]
[1739397144790,0.74394,2688.3,2688.2,1.1094]
[1739397145097,0.74392,2688.4,2688.2,1.1094]
[1739397145293,1.647,2688.6,2688.4,0.74388]
[1739397145493,0.5734,2688.7,2688.5,0.74385]
[1739397145689,0.74383,2688.7,2688.6,0.5529]
[1739397145897,0.7439,2688.4,2688.3,4.54212]
[1739397146190,0.7439,2688.4,2688.3,3.7607]
[1739397148096,0.7439,2688.4,2688.3,3.2078]
[1739397148591,0.7439,2688.4,2688.3,3.95172]
[1739397148999,0.7439,2688.4,2688.3,3.2078]
[1739397149695,0.7439,2688.4,2688.3,3.95172]
[1739397150499,0.74388,2688.5,2688.4,0.74389]
[1739397150795,0.74388,2688.5,2688.3,3.2078]
[1739397150796,0.564,2688.6,2688.5,0.74387]
[1739397151196,1.30784,2688.6,2688.5,0.74387]
[1739397151399,0.74388,2688.5,2688.4,0.74387]
[1739397151602,0.564,2688.6,2688.5,0.74387]
[1739397152608,0.74377,2688.9,2688.8,0.74377]
[1739397152806,2.39077,2688.9,2688.8,0.74377]
[1739397153596,1.33522,2689.1,2688.7,5.06732]
[1739397153804,0.5915,2689.1,2689.0,0.74373]
[1739397154007,0.74375,2689.0,2688.7,3.2078]
[1739397154306,1.7266,2689.1,2688.8,0.55207157]
[1739397154500,0.74376,2688.9,2688.8,1.29584157]
[1739397155006,0.74376,2688.9,2688.8,0.74377]
[1739397155207,0.74374,2689.0,2688.9,0.74376]
[1739397155799,2.47032,2689.1,2688.7,3.2078]
[1739397156007,2.47032,2689.1,2689.0,0.74373]
[1739397156303,1.7266,2689.1,2689.0,3.95153]
[1739397156800,0.74926756,2689.2,2689.0,3.2078]
[1739397156995,0.00557756,2689.2,2689.1,0.7437]
[1739397157200,0.74924756,2689.2,2689.1,0.7437]
[1739397157408,0.74926756,2689.2,2689.1,0.7437]
[1739397157709,0.74926756,2689.2,2689.0,3.95151]
[1739397158209,0.74926756,2689.2,2689.1,0.7437]
[1739397158707,0.00557756,2689.2,2689.1,0.7437]
[1739397158907,0.74924756,2689.2,2689.1,0.7437]
[1739397159109,0.00557756,2689.2,2689.1,0.7437]
[1739397159606,0.00557756,2689.2,2689.1,1.8906]
[1739397159916,0.00557756,2689.2,2689.1,2.44219343]
[1739397163003,1.647,2689.7,2689.6,0.74356]
[1739397163204,0.02416324,2690.0,2689.7,0.74354]
[1739397163405,1.1282,2690.1,2690.0,0.74345]
[1739397164617,1.1282,2690.1,2689.8,4.37427756]
[1739397164807,1.87165,2690.1,2689.9,0.74347]
[1739397165521,0.74345,2690.0,2689.9,0.74347]
[1739397166608,1.87164,2690.1,2689.9,0.74347]
[1739397167010,1.87165,2690.1,2689.9,0.74347]
[1739397167208,1.1282,2690.1,2689.9,0.74347]
[1739397167414,1.1282,2690.1,2689.8,4.37427756]
[1739397167716,1.87165,2690.1,2689.9,0.74347]
[1739397168014,0.74345,2690.0,2689.9,0.74347]
[1739397168405,0.74345,2690.0,2689.8,4.37427756]
[1739397168613,1.87164,2690.1,2689.8,4.37427756]
[1739397169003,1.87164,2690.1,2690.0,0.74345]
[1739397169516,0.74346,2690.0,2689.9,0.74346]
[1739397169917,0.74348,2689.9,2689.8,3.95687756]
[1739397170417,0.74348,2689.9,2689.8,3.21337756]
[1739397171115,2.98678,2690.1,2689.8,3.21337756]
[1739397171116,1.1282,2690.1,2689.8,3.21337756]
[1739397171317,0.74348,2690.0,2689.9,0.74347]
[1739397171715,1.1282,2690.1,2689.8,3.21337756]
[1739397171914,0.74346,2690.0,2689.9,0.74346]
[1739397173218,0.74348,2689.9,2689.8,3.95686756]
[1739397173514,0.74348,2689.9,2689.8,3.21337756]
[1739397174616,0.74348,2689.9,2689.8,3.95688756]
[1739397176315,0.74348,2690.0,2689.8,3.21337756]
[1739397176523,0.74348,2690.0,2689.9,0.74346]
[1739397177414,0.74348,2689.9,2689.8,3.95687756]
[1739397177619,0.74348,2689.9,2689.8,3.95688756]
[1739397178008,0.74348,2689.9,2689.8,0.00557756]
[1739397178320,2.38948,2689.9,2689.8,0.00557756]
[1739397185622,2.38948,2689.9,2689.6,0.74354]
[1739397185623,0.74356,2689.7,2689.6,0.74354]
[1739397187214,0.74356,2689.6,2689.5,3.95138]
[1739397187418,1.86196,2689.6,2689.5,3.2078]
[1739397191219,1.86196,2689.6,2689.4,0.74917756]
[1739397191220,1.1184,2689.6,2689.4,0.00557756]
[1739397191423,0.74359,2689.5,2689.4,0.00557756]
[1739397191624,0.74359,2689.5,2689.4,0.74919756]
[1739397192027,0.74359,2689.5,2689.4,1.92139756]
[1739397192628,0.564,2689.6,2689.4,1.17777756]
[1739397192821,0.74357,2689.7,2689.6,0.74356]
[1739397193222,0.74358,2689.6,2689.5,0.74357]
[1739397193824,0.74358,2689.6,2689.5,1.29665998]
[1739397194423,0.74358,2689.6,2689.5,0.55308998]
[1739397195126,3.2078,2689.6,2689.4,0.00557756]
[1739397195324,1.93299,2689.5,2689.4,0.00557756]
[1739397196022,1.99446848,2689.5,2689.4,0.00557756]
[1739397196218,0.74373,2689.0,2688.9,3.2078]
[1739397196422,5.65086152,2689.0,2688.9,3.2078]
[1739397196826,0.5946,2689.2,2688.9,3.2078]
[1739397197028,0.74373,2689.0,2688.9,3.2078]
[1739397197227,0.74373,2689.0,2688.9,3.95154]
[1739397197933,0.74373,2689.0,2688.9,3.2078]
[1739397198232,0.74373,2689.0,2688.9,3.95156]
[1739397200023,0.74373,2689.0,2688.9,3.2078]
[1739397202028,1.34543,2689.0,2688.9,3.2078]
[1739397205933,2.38973,2689.0,2688.9,3.2078]
[1739397206129,2.38973,2689.0,2688.9,3.95156]
[1739397206938,2.38973,2689.0,2688.9,3.2078]
[1739397208536,2.38973,2689.0,2688.9,3.95156]
[1739397208737,2.38973,2689.0,2688.9,3.2078]
[1739397209136,2.38973,2689.0,2688.9,3.95156]
[1739397211236,2.38973,2689.0,2688.9,3.2078]
[1739397211540,2.38973,2689.0,2688.9,3.95156]
[1739397211931,0.74373,2689.0,2688.9,3.95156]
[1739397212138,1.138,2689.5,2688.9,3.2078]
[1739397212431,1.646,2689.4,2689.3,3.95143]
[1739397213940,2.38962,2689.4,2689.3,3.2078]
[1739397214140,2.38962,2689.4,2689.3,3.95145]
[1739397214338,2.38962,2689.4,2689.2,0.74367]
[1739397214641,0.74362,2689.4,2689.2,0.74367]
[1739397216335,0.592,2689.5,2689.3,3.95144]
[1739397216539,1.3356,2689.5,2689.4,0.74362]
[1739397216740,0.74362,2689.4,2689.3,3.95143]
[1739397217343,0.74362,2689.4,2689.3,3.2078]